lending/lending_fUSD_20251022
["ID","MTS","AMOUNT","RATE_DAILY","PERIOD"]
[392046870,1761119699013,-1000.0,0.0004,120]
[392046871,1761119699058,-499.76162352,0.0004,120]
[392046872,1761119699105,-535.51931467,0.0004,120]
[392046873,1761119699148,-200.0,0.0004,120]
[392046874,1761119699192,-150.0,0.0004,120]
[392046875,1761119699243,-2611.14159943,0.0004,120]
[392046876,1761119699295,-581.52621598,0.0004,120]
[392046877,1761119699346,-221360.61609189,0.0004,120]
[392046878,1761119699394,-224.86319443,0.0004,120]
[392046879,1761119699441,-195.71537282,0.0004,120]
[392046880,1761119699487,-7215.96370692,0.0004,120]
[392046881,1761119699536,-5153.09692907,0.0004,120]
[392046882,1761119699583,-2500.0,0.0004,120]
[392046883,1761119699629,-196.22,0.0004,120]
[392046884,1761119699675,-2500.0,0.0004,120]
[392046885,1761119699719,-2500.0,0.0004,120]
[392046886,1761119699765,-2500.0,0.0004,120]
[392046887,1761119699810,-549.59,0.0004,120]
[392046888,1761119699857,-1038.49,0.0004,120]
[392046889,1761119699900,-174.24,0.0004,120]
[392046890,1761119699945,-516.46,0.0004,120]
[392046891,1761119700001,-160.42,0.0004,120]
[392046892,1761119700057,-22500.0,0.0004,120]
[392046893,1761119700106,-22499.99,0.0004,120]
[392046894,1761119700158,-192.63,0.0004,120]
[392046895,1761119700212,-516.09,0.0004,120]
[392046896,1761119700266,-8024.65,0.00040063,120]
[392046897,1761119700313,-188.63910938,0.000405,120]
[392046898,1761119700368,-7062.85766524,0.000405,120]
[392046899,1761119700417,-2500.0,0.000405,120]
[392046900,1761119700466,-2500.0,0.000405,120]
[392046901,1761119700711,-1999.0,0.00040575,120]
[392046902,1761119700770,-853.0,0.000407,120]
[392046903,1761119700819,-2144077.89463796,0.000409,90]
[392046905,1761119714170,-1999.0,0.00034099,120]
[392046906,1761119714247,-1999.0,0.00034921,120]
[392046907,1761119714310,-1999.0,0.00035743,120]
[392046908,1761119714368,-1999.0,0.00036565,120]
[392046909,1761119714427,-1999.0,0.00037387,120]
[392046910,1761119714483,-1999.0,0.00038209,120]
[392046911,1761119714540,-1999.0,0.00039031,120]
[392046912,1761119714596,-1999.0,0.00039853,120]
[392046913,1761119714651,-27566.09924827,0.00040207,120]
[392046914,1761119714705,-1999.0,0.00040675,120]
[392046915,1761119714758,-4644801.8104989,0.000409,90]
[392046916,1761119714812,-68601.83604847,0.00040927,70]
[392046917,1761119714865,-2616.20060463,0.00041,120]
[392046918,1761119714917,-2359.29637252,0.00041,120]
[392046919,1761119714967,-150.0,0.00041,120]
[392046920,1761119715019,-1000.0,0.00041,120]
[392046921,1761119715071,-2053.13905877,0.00041,120]
[392046922,1761119715124,-3035.09307658,0.00041,120]
[392046923,1761119715176,-7547.0,0.00041,120]
[392046924,1761119715228,-2500.0,0.00041,120]
[392046925,1761119715284,-2500.0,0.00041,120]
[392046926,1761119715338,-151.0,0.00041,90]
[392046927,1761119715391,-4393.32,0.00041096,120]
[392046928,1761119715445,-50000.0,0.00041096,120]
[392046929,1761119715498,-3222.66,0.00041096,120]
[392046930,1761119715551,-2012.0,0.00041096,120]
[392046931,1761119715606,-966253.03374405,0.00041172,120]
[392046932,1761119715659,-267.86,0.00041292,120]
[392046933,1761119715713,-14153.25870851,0.000413,120]
[392046934,1761119715771,-411.87752571,0.0004143,120]
[392046935,1761119715832,-2523.29,0.0004145,120]
[392046936,1761119715895,-1191.15155657,0.00041496,120]
[392046937,1761119715949,-2500.0,0.000415,120]
[392046938,1761119716002,-2500.0,0.000415,120]
[392046939,1761119716059,-156.0,0.000416,120]
[392046940,1761119716112,-3000000.0,0.000418,120]
[392046941,1761119716168,-7062.85766524,0.000418,120]
[392046942,1761119716223,-372.0,0.0004188,120]
[392046943,1761119716280,-1000.0,0.00042,60]
[392046944,1761119716339,-150.0,0.00042,120]
[392046945,1761119716392,-1000.0,0.00042,120]
[392046946,1761119716447,-10000.0,0.00042,120]
[392046947,1761119716499,-818.0,0.00042,120]
[392046948,1761119716551,-532.80929525,0.00042,120]
[392046949,1761119716603,-494.951385,0.00042,120]
[392046950,1761119716659,-11952.99940304,0.00042,120]
[392046951,1761119716710,-2500.0,0.00042,120]
[392046952,1761119716762,-2500.0,0.00042,120]
[392046953,1761119716814,-129159.45580849,0.0004239,120]
[392046954,1761119720919,-3557.43178499,0.0004239,120]
[392046955,1761119720974,-4000000.0,0.000424,120]
[392046956,1761119721038,-1674.63394382,0.000425,60]
[392046957,1761119721100,-900.25973944,0.000425,120]
[392046958,1761119721161,-162.0,0.000425,120]
[392046959,1761119721218,-2500.0,0.000425,120]
[392046960,1761119721271,-2500.0,0.000425,120]
[392046961,1761119721326,-700.0,0.00042526,60]
[392046962,1761119721381,-500.0,0.00042526,60]
[392046963,1761119721435,-1000.0,0.0004255,120]
[392046964,1761119721494,-200.0,0.0004255,120]
[392046965,1761119721548,-6224.0497078,0.00042745,120]
[392046966,1761119721602,-1915.53110928,0.000428,120]
[392046967,1761119721655,-68601.83604847,0.00042927,120]
[392046968,1761119721707,-239.0780652,0.00042999,120]
[392046969,1761119721761,-3000.0,0.00043,120]
[392046970,1761119721816,-150.0,0.00043,120]
[392046971,1761119722074,-1000.0,0.00043,120]
[392046972,1761119722128,-472.72501861,0.00043,120]
[392046973,1761119722182,-2000.0,0.00043,120]
[392046974,1761119722235,-149084.65000603,0.00043,120]
[392046975,1761119722290,-336.42748902,0.00043,60]
[392046976,1761119722344,-151.35039999,0.00043,120]
[392046977,1761119722399,-7547.0,0.00043,120]
[392046978,1761119722456,-18193.72930848,0.00043,120]
[392046979,1761119722508,-2500.0,0.00043,120]
[392046980,1761119722561,-2500.0,0.00043,120]
[392046981,1761119722615,-5900.14330171,0.00043,120]
[392046982,1761119722668,-208202.999999,0.000431,120]
[392046983,1761119722721,-151.0,0.00043151,90]
[392046984,1761119722775,-822.46035328,0.0004323,120]
[392046985,1761119722827,-522.46746931,0.0004328,120]
[392046986,1761119722882,-639.63454619,0.000434,120]
[392046987,1761119722936,-159.08674649,0.000435,120]
[392046988,1761119722988,-170.68598064,0.000435,120]
[392046989,1761119723041,-2500.0,0.000435,120]
[392046990,1761119723095,-2500.0,0.000435,120]
[392046991,1761119723150,-1000.19525603,0.000436,120]
[392046992,1761119723203,-497.97074355,0.000436,120]
[392046993,1761119723262,-700.0,0.00043622,60]
[392046994,1761119723319,-500.0,0.00043622,60]
[392046995,1761119723373,-4010826.02,0.0004369,120]
[392046996,1761119723427,-244.64003751,0.000437,120]
[392046997,1761119723480,-6516.52408833,0.000437,90]
[392046998,1761119723533,-873.181741,0.000438,120]
[392046999,1761119723585,-1028.074234,0.000438,120]
[392047000,1761119723639,-488.18,0.000438,120]
[392047001,1761119723692,-891.670519,0.000438,120]
[392047002,1761119723754,-300.0,0.00043836,120]
[392047003,1761119723811,-300.0,0.00043836,120]
[392047004,1761119723867,-429.649584,0.00043836,120]
[392047005,1761119723928,-262.0,0.00043973,120]
[392047006,1761119723990,-263.0226746,0.00044,120]
[392047007,1761119724052,-1000.0,0.00044,60]
[392047008,1761119724112,-150.0,0.00044,120]
[392047009,1761119724174,-1000.0,0.00044,120]
[392047010,1761119724237,-158.77331983,0.00044,120]
[392047011,1761119724300,-200.0,0.00044,120]
[392047012,1761119724364,-828.45,0.00044,120]
[392047013,1761119724425,-156.06921693,0.00044,120]
[392047014,1761119724480,-2500.0,0.00044,120]
[392047015,1761119724535,-2500.0,0.00044,120]
[392047016,1761119724589,-3044.92168668,0.00044,120]
[392047017,1761119724644,-277.73447,0.0004405,120]
[392047018,1761119724699,-1000.0,0.00044136,120]
[392047019,1761119724753,-1000.0,0.00044136,120]
[392047020,1761119724808,-1000.0,0.00044136,120]
[392047021,1761119724863,-1000.0,0.00044136,120]
[392047022,1761119724918,-1000.0,0.00044136,120]
[392047023,1761119724973,-1000.0,0.00044136,120]
[392047024,1761119725028,-1000.0,0.00044136,120]
[392047025,1761119725083,-1000.0,0.00044136,120]
[392047026,1761119725135,-1000.0,0.00044136,120]
[392047027,1761119725188,-1000.0,0.00044136,120]
[392047028,1761119725241,-686.39589383,0.00044136,120]
[392047029,1761119725296,-151.2816168,0.00044136,120]
[392047030,1761119725351,-1444.0,0.00044164,120]
[392047031,1761119725405,-451602.06390016,0.000442,120]
[392047032,1761119740640,4818.48,0.00016,30]
[392047033,1761119752032,-167.24346945,0.000339,120]
[392047034,1761119752110,-150.0,0.000343,60]
[392047035,1761119752175,-1338.1228173,0.00037,120]
[392047036,1761119752230,-166.09,0.000372,60]
[392047037,1761119752487,-151.0,0.00039,120]
[392047038,1761119752541,-696.032522,0.00039,120]
[392047039,1761119752596,-696.032522,0.00039,120]
[392047040,1761119752646,-696.032522,0.00039,120]
[392047041,1761119752699,-151.0,0.000409,120]
[392047042,1761119752751,-696.032522,0.000409,120]
[392047043,1761119752805,-696.032522,0.000409,120]
[392047044,1761119752859,-696.032522,0.000409,120]
[392047045,1761119752915,-207.206195,0.000418,120]
[392047046,1761119752976,-696.032522,0.000418,120]
[392047047,1761119753037,-696.032522,0.000418,120]
[392047048,1761119753090,-696.032522,0.000418,120]
[392047049,1761119753145,-696.032522,0.000424,120]
[392047050,1761119753199,-696.032522,0.000424,120]
[392047051,1761119753253,-696.032522,0.000424,120]
[392047052,1761119753312,-3056.51598218,0.0004275,120]
[392047053,1761119753368,-32549.48582593,0.0004275,120]
[392047054,1761119753421,-2140.47,0.0004275,120]
[392047055,1761119753474,-13959.72,0.0004395,120]
[392047056,1761119753529,-336.53,0.0004395,120]
[392047057,1761119753581,-891.11,0.0004395,120]
[392047058,1761119753630,-2077.67,0.0004395,120]
[392047059,1761119753678,-3548397.93609984,0.000442,120]
[392047060,1761119753727,-179.06366411,0.000443,120]
[392047061,1761119753777,-4000000.0,0.0004442,120]
[392047062,1761119753827,-307.76421619,0.000445,120]
[392047063,1761119753876,-2047.0,0.000445,120]
[392047064,1761119753928,-2523.29,0.000445,120]
[392047065,1761119753979,-2500.0,0.000445,120]
[392047066,1761119754033,-5433.60618643,0.00044588,120]
[392047067,1761119754086,-150.0,0.000446,120]
[392047068,1761119754140,-1372766.78527957,0.0004469,120]
[392047069,1761119760349,-696.032522,0.00039,120]
[392047070,1761119760408,-696.032522,0.000409,120]
[392047071,1761119760465,-696.032522,0.000418,120]
[392047072,1761119760520,-696.032532,0.000424,120]
[392047073,1761119760578,-2627233.21472043,0.0004469,120]
[392047074,1761119760630,-700.0,0.00044718,60]
[392047075,1761119760682,-500.0,0.00044718,60]
[392047076,1761119760734,-831.89134727,0.00044731,120]
[392047077,1761119760791,-1471.27498619,0.00044746,120]
[392047078,1761119760852,-1892.69697682,0.00044749,120]
[392047079,1761119760912,-1892.69697682,0.00044757,120]
[392047080,1761119760965,-679.42712018,0.00044759,120]
[392047081,1761119761017,-3289.38667911,0.00044766,120]
[392047082,1761119761070,-96154.41531805,0.00044778,120]
[392047083,1761119761120,-1471.27498619,0.00044785,120]
[392047084,1761119761172,-1780.9206648,0.00044788,120]
[392047085,1761119761226,-10412.2107728,0.000448,60]
[392047086,1761119761283,-3000000.0,0.000448,120]
[392047087,1761119761336,-831.89134727,0.00044804,120]
[392047088,1761119761388,-96154.41531805,0.00044807,120]
[392047089,1761119761439,-17541.62914313,0.00044809,120]
[392047090,1761119761490,-679.42712018,0.00044823,120]
[392047091,1761119761537,-831.89134727,0.00044827,120]
[392047092,1761119761588,-679.42712018,0.0004483,120]
[392047093,1761119761637,-1471.27498619,0.00044834,120]
[392047094,1761119761686,-17541.62914313,0.00044846,120]
[392047095,1761119761734,-17541.62914313,0.00044859,120]
[392047096,1761119761781,-3289.38667911,0.00044866,120]
[392047097,1761119761827,-679.42712018,0.00044868,120]
[392047098,1761119761879,-17541.62914313,0.0004487,120]
[392047099,1761119761928,-96154.41531805,0.00044873,120]
[392047100,1761119761980,-1892.69697682,0.00044881,120]
[392047101,1761119762032,-1892.69697682,0.00044882,120]
[392047102,1761119762084,-3289.38667911,0.00044886,120]
[392047103,1761119762136,-1471.27498619,0.00044887,120]
[392047104,1761119762187,-177.06170512,0.0004489,120]
[392047105,1761119762245,-703.90220737,0.000449,120]
[392047106,1761119762302,-96154.41531805,0.0004492,120]
[392047107,1761119762356,-831.89134727,0.0004492,120]
[392047108,1761119762409,-68601.83604847,0.00044927,120]
[392047109,1761119762467,-3289.38667911,0.00044962,120]
[392047110,1761119762523,-150.0,0.0004499,120]
[392047111,1761119762576,-150.0,0.0004499,120]
[392047112,1761119762633,-300.0,0.0004499,120]
[392047113,1761119762687,-150.0,0.0004499,120]
[392047114,1761119762743,-26160.0,0.0004499,120]
[392047115,1761119762798,-1000.0,0.00044999,120]
[392047116,1761119762851,-1000000.0,0.00045,120]
[392047117,1761119762905,-156.3,0.00045,85]
[392047118,1761119762959,-610.4079324,0.00045,120]
[392047119,1761119763013,-2322.24717408,0.00045,120]
[392047120,1761119763067,-2168.47285315,0.00045,120]
[392047121,1761119763120,-1000000.0,0.00045,120]
[392047122,1761119763174,-766496.40954038,0.00045,120]
[392047123,1761119779360,-158.85180234,0.0004475,120]
[392047124,1761119779415,-420.0,0.0004499,120]
[392047125,1761119779470,-233503.59045962,0.00045,120]
[392047126,1761119779528,-1000000.0,0.00045,120]
[392047127,1761119779583,-818000.0,0.00045,120]
[392047128,1761119779636,-2770.45250327,0.00045,120]
[392047129,1761119779690,-1800000.0,0.00045,120]
[392047130,1761119779747,-1200000.0,0.00045,120]
[392047131,1761119779800,-1000000.0,0.00045,120]
[392047132,1761119779852,-174.71903725,0.00045,120]
[392047133,1761119779906,-2000000.0,0.00045,120]
[392047134,1761119779963,-50562.41998812,0.00045,120]
[392047135,1761119780020,-14132.6999082,0.00045,120]
[392047136,1761119780075,-880277.2663012,0.00045,120]
[392047137,1761119845861,289.0868268,0.00034288,120]
[392047138,1761119859001,533.0498603,0.00034288,120]
[392047139,1761119874074,615.86894597,0.00034288,120]
[392047140,1761119879095,550.98193623,0.00034288,120]
[392047141,1761119884003,533.42442626,0.00034288,120]
[392047142,1761119885892,500.0,0.00034288,120]
[392047143,1761119887598,500.0,0.00034288,120]
[392047144,1761119887836,500.0,0.00034288,120]
[392047145,1761119888072,500.0,0.00034288,120]
[392047146,1761119888303,500.0,0.00034288,120]
[392047147,1761119888547,500.0,0.00034288,120]
[392047148,1761119888831,218.77646832,0.00034288,120]
[392047149,1761119889317,500.0,0.00034288,120]
[392047150,1761119889556,451.60198818,0.00034288,120]
[392047151,1761119895131,500.0,0.00034288,120]
[392047152,1761119896383,500.0,0.00034288,120]
[392047153,1761119896904,500.0,0.00034288,120]
[392047154,1761119897736,521.0594368,0.00034288,120]
[392047155,1761119898766,500.0,0.00034288,120]
[392047156,1761119900532,516.0780715,0.00034288,120]
[392047157,1761119902879,512.26122744,0.00034288,120]
[392047158,1761119904235,502.14227651,0.00034288,120]
[392047159,1761119904884,508.22035574,0.00034288,120]
[392047160,1761119905943,500.0,0.00034288,120]
[392047161,1761119906052,501.80751424,0.00034288,120]
[392047162,1761119906169,179.34060805,0.00034288,120]
[392047163,1761119908183,163.59497094,0.00034288,120]
[392047164,1761119909741,502.97747389,0.00034288,120]
[392047165,1761119909813,502.96340765,0.00034288,120]
[392047166,1761119911625,501.21100855,0.00034288,120]
[392047167,1761119911682,513.19842259,0.00034288,120]
[392047168,1761119913493,500.0,0.00034288,120]
[392047169,1761119913721,500.0,0.00034288,120]
[392047170,1761119913962,500.0,0.00034288,120]
[392047171,1761119914220,500.0,0.00034288,120]
[392047172,1761119914569,500.0,0.00034288,120]
[392047173,1761119914801,500.0,0.00034288,120]
[392047174,1761119915056,517.08457028,0.00034288,120]
[392047175,1761119916437,500.0,0.00034288,120]
[392047176,1761119916515,500.901024,0.00034288,120]
[392047177,1761119917465,500.0,0.00034288,120]
[392047178,1761119919540,505.00796978,0.00034288,120]
[392047179,1761119919862,397.12647058,0.00034288,120]
[392047180,1761119920838,500.0,0.00034288,120]
[392047181,1761119921645,552.14159771,0.00034288,120]
[392047182,1761119922992,500.0,0.00034288,120]
[392047183,1761119923233,150.66441972,0.00034288,120]
[392047184,1761119933207,508.69235977,0.00034288,120]
[392047185,1761119956583,411.81656186,0.00034288,120]
[392047186,1761119959224,500.0,0.00034288,120]
[392047187,1761119961450,592.56100663,0.00034288,120]
[392047188,1761119964957,500.0,0.00034288,120]
[392047189,1761119967219,500.0,0.00034314,120]
[392047190,1761119968602,500.0,0.00034314,120]
[392047191,1761119969091,589.11393809,0.00034314,120]
[392047192,1761119970111,500.0,0.00034314,120]
[392047193,1761119971914,505.64421567,0.00034314,120]
[392047194,1761119972441,518.35213056,0.00034314,120]
[392047195,1761119974078,505.95648879,0.00034314,120]
[392047196,1761119974375,500.0,0.00034314,120]
[392047197,1761119977611,509.41272043,0.00034314,120]
[392047198,1761119977836,500.0,0.00034314,120]
[392047199,1761119978105,500.0,0.00034314,120]
[392047200,1761119978416,500.0,0.00034314,120]
[392047201,1761119978654,500.0,0.00034314,120]
[392047202,1761119978894,500.0,0.00034314,120]
[392047203,1761119979129,500.0,0.00034314,120]
[392047204,1761119979359,506.77092243,0.00034314,120]
[392047205,1761119979418,500.0,0.00034314,120]
[392047206,1761119979656,500.0,0.00034314,120]
[392047207,1761119979936,500.0,0.00034314,120]
[392047208,1761119980214,500.0,0.00034314,120]
[392047209,1761119980457,500.0,0.00034314,120]
[392047210,1761119980692,500.0,0.00034314,120]
[392047211,1761119980934,500.0,0.00034314,120]
[392047212,1761119981179,500.0,0.00034314,120]
[392047213,1761119981575,500.0,0.00034314,120]
[392047214,1761119981636,500.0,0.00034314,120]
[392047215,1761119982473,500.0,0.00034314,120]
[392047216,1761119982731,402.21384511,0.00034314,120]
[392047217,1761119982976,500.0,0.00034314,120]
[392047218,1761119983214,500.0,0.00034314,120]
[392047219,1761119983773,500.0,0.00034314,120]
[392047220,1761119985064,500.0,0.00034314,120]
[392047221,1761119985309,500.0,0.00034314,120]
[392047222,1761119985913,500.0,0.00034314,120]
[392047223,1761119986152,500.0,0.00034314,120]
[392047224,1761119986398,500.0,0.00034314,120]
[392047225,1761119986638,500.0,0.00034314,120]
[392047226,1761119986878,500.0,0.00034314,120]
[392047227,1761119987219,502.9594548,0.00034314,120]
[392047228,1761119987274,500.0,0.00034314,120]
[392047229,1761119987517,593.21376606,0.00034314,120]
[392047230,1761119988792,500.0,0.00034314,120]
[392047231,1761119989416,500.0,0.00034314,120]
[392047232,1761119989721,511.03318376,0.00034314,120]
[392047233,1761119990574,500.0,0.00034314,120]
[392047234,1761119990803,500.0,0.00034314,120]
[392047235,1761119991032,500.0,0.00034314,120]
[392047236,1761119991294,500.0,0.00034314,120]
[392047237,1761119991556,500.0,0.00034314,120]
[392047238,1761119991789,500.0,0.00034314,120]
[392047239,1761119992032,500.0,0.00034314,120]
[392047240,1761119992280,500.0,0.00034314,120]
[392047241,1761119993100,1938.64,0.00034314,120]
[392047242,1761119993361,1938.64,0.00034314,120]
[392047243,1761119993616,1938.64,0.00034314,120]
[392047244,1761119993856,1938.64,0.00034314,120]
[392047245,1761119994090,1938.64,0.00034314,120]
[392047246,1761119994367,1938.64,0.00034314,120]
[392047247,1761119994614,1938.64,0.00034314,120]
[392047248,1761119994852,1938.64,0.00034314,120]
[392047249,1761119995488,1938.64,0.00034314,120]
[392047250,1761119995739,1938.64,0.00034314,120]
[392047251,1761119995796,506.36660279,0.00034314,120]
[392047252,1761119995973,1938.64,0.00034314,120]
[392047253,1761119996691,1938.64,0.00034314,120]
[392047254,1761119996935,1938.64,0.00034314,120]
[392047255,1761119997215,1938.64,0.00034314,120]
[392047256,1761119997454,1938.64,0.00034314,120]
[392047257,1761119997696,1938.64,0.00034314,120]
[392047258,1761119997951,1938.64,0.00034314,120]
[392047259,1761119998286,1938.64,0.00034314,120]
[392047260,1761119998439,1938.64,0.00034314,120]
[392047261,1761119998697,1938.64,0.00034314,120]
[392047262,1761119998936,1938.64,0.00034314,120]
[392047263,1761119999180,1938.64,0.00034314,120]
[392047264,1761119999313,500.0,0.00034314,120]
[392047265,1761119999437,1938.64,0.00034314,120]
[392047266,1761119999548,572.02882489,0.00034314,120]
[392047267,1761119999682,1938.73484866,0.00034314,120]
[392047268,1761120000960,500.0,0.00034314,120]
[392047269,1761120004681,503.95799316,0.00034314,120]
[392047270,1761120004793,500.0,0.00034314,120]
[392047271,1761120005055,545.46,0.00034314,120]
[392047272,1761120005674,500.0,0.00034314,120]
[392047273,1761120005910,515.79731271,0.00034314,120]
[392047276,1761120009193,205.80558147,0.00028694,120]
[392047278,1761120009959,649.07,0.00034314,120]
[392047282,1761120012068,461.58022605,0.00034314,120]
[392047283,1761120012234,526.19993667,0.00034314,120]
[392047286,1761120013707,502.35512583,0.00034314,120]
[392047287,1761120013926,615.43341934,0.00034314,120]
[392047288,1761120014315,508.13163361,0.00034314,120]
[392047289,1761120015687,501.21690092,0.00034314,120]
[392047290,1761120015783,500.0,0.00034314,120]
[392047291,1761120016012,500.0,0.00034314,120]
[392047292,1761120016262,500.0,0.00034314,120]
[392047293,1761120016556,500.0,0.00034314,120]
[392047294,1761120016618,503.15644083,0.00034314,120]
[392047295,1761120016756,645.3755319,0.00034314,120]
[392047296,1761120017392,500.0,0.00034314,120]
[392047297,1761120017624,500.0,0.00034314,120]
[392047298,1761120017855,500.0,0.00034314,120]
[392047299,1761120018100,507.40682252,0.00034314,120]
[392047300,1761120018533,506.34489947,0.00034314,120]
[392047301,1761120018604,1023.83,0.00034314,120]
[392047302,1761120018661,500.0,0.00034314,120]
[392047303,1761120018843,1023.83,0.00034314,120]
[392047304,1761120019021,1292.65,0.00034314,120]
[392047305,1761120019091,1023.83,0.00034314,120]
[392047306,1761120019295,1292.65,0.00034314,120]
[392047307,1761120019354,1023.83,0.00034314,120]
[392047308,1761120019544,1292.65,0.00034314,120]
[392047309,1761120019602,1023.83,0.00034314,120]
[392047310,1761120019798,1292.65,0.00034314,120]
[392047311,1761120019857,1023.83,0.00034314,120]
[392047312,1761120020039,1023.83,0.00034314,120]
[392047313,1761120020102,1292.65,0.00034314,120]
[392047314,1761120020278,1023.83,0.00034314,120]
[392047315,1761120020336,1529.75,0.00034314,120]
[392047316,1761120020395,1292.65,0.00034314,120]
[392047317,1761120020532,1023.83,0.00034314,120]
[392047318,1761120020590,1529.75,0.00034314,120]
[392047319,1761120020649,1292.65,0.00034314,120]
[392047320,1761120020704,500.0,0.00034314,120]
[392047321,1761120020791,1529.75,0.00034314,120]
[392047322,1761120020850,1292.65,0.00034314,120]
[392047323,1761120020915,1023.83,0.00034314,120]
[392047324,1761120021033,1529.75,0.00034314,120]
[392047325,1761120021094,1292.65,0.00034314,120]
[392047326,1761120021176,1023.83,0.00034314,120]
[392047327,1761120021305,1529.75,0.00034314,120]
[392047328,1761120021449,1023.83,0.00034314,120]
[392047329,1761120021559,1529.75,0.00034314,120]
[392047330,1761120021619,1292.65,0.00034314,120]
[392047331,1761120021701,1023.83,0.00034314,120]
[392047332,1761120021819,1529.75,0.00034314,120]
[392047333,1761120021874,1292.65,0.00034314,120]
[392047334,1761120021941,1023.83,0.00034314,120]
[392047335,1761120022100,1292.65,0.00034314,120]
[392047336,1761120022157,1529.75,0.00034314,120]
[392047337,1761120022213,1023.83,0.00034314,120]
[392047338,1761120022356,1529.75,0.00034314,120]
[392047339,1761120022412,1292.65,0.00034314,120]
[392047340,1761120022467,1023.83,0.00034314,120]
[392047341,1761120022601,1529.75,0.00034314,120]
[392047342,1761120022655,1292.65,0.00034314,120]
[392047343,1761120022709,1023.83,0.00034314,120]
[392047344,1761120022846,1529.75,0.00034314,120]
[392047345,1761120022907,1292.65,0.00034314,120]
[392047346,1761120022966,1023.83,0.00034314,120]
[392047347,1761120023067,1529.75,0.00034314,120]
[392047348,1761120023141,1292.65,0.00034314,120]
[392047349,1761120023212,1023.83,0.00034314,120]
[392047350,1761120023359,1529.75,0.00034314,120]
[392047351,1761120023445,1292.65,0.00034314,120]
[392047352,1761120023514,1023.83,0.00034314,120]
[392047353,1761120023650,1529.75,0.00034314,120]
[392047354,1761120023714,1292.65,0.00034314,120]
[392047355,1761120023798,1023.83,0.00034314,120]
[392047356,1761120023890,1529.75,0.00034314,120]
[392047357,1761120023954,1292.65,0.00034314,120]
[392047358,1761120024043,1023.83,0.00034314,120]
[392047359,1761120024124,1529.75,0.00034314,120]
[392047360,1761120024181,1292.65,0.00034314,120]
[392047361,1761120024287,1023.83,0.00034314,120]
[392047362,1761120024395,502.38927291,0.00034314,120]
[392047363,1761120024459,1529.75,0.00034314,120]
[392047364,1761120024517,1292.65,0.00034314,120]
[392047365,1761120024575,500.0,0.00034314,120]
[392047366,1761120024631,1023.85734473,0.00034314,120]
[392047367,1761120024873,1529.75,0.00034314,120]
[392047368,1761120024932,1292.65,0.00034314,120]
[392047369,1761120024992,500.0,0.00034314,120]
[392047370,1761120025050,1529.75,0.00034314,120]
[392047371,1761120025112,500.0,0.00034314,120]
[392047372,1761120025170,1529.75,0.00034314,120]
[392047373,1761120025255,500.0,0.00034314,120]
[392047374,1761120025313,1292.65,0.00034314,120]
[392047375,1761120025380,320.32395389,0.00034314,120]
[392047376,1761120025504,500.0,0.00034314,120]
[392047377,1761120025566,1292.68557905,0.00034314,120]
[392047378,1761120025719,1529.75,0.00034314,120]